bitfinex-derivatives/quotes_BTCF0:USTF0_20241125
["timestamp","ask_amount","ask_price","bid_price","bid_amount"]
[1732503950141,0.05136193,97485.0,97484.0,0.30797626]
[1732503952944,0.09351905,97485.0,97484.0,0.0004]
[1732503953350,0.09351905,97485.0,97484.0,0.24647548]
[1732503953652,0.24689507,97485.0,97484.0,0.24647548]
[1732503953855,0.27839507,97485.0,97484.0,0.24647548]
[1732503954149,0.12501905,97485.0,97484.0,0.0004]
[1732503954938,0.17485523,97485.0,97484.0,0.0004]
[1732503955150,0.48261741,97485.0,97484.0,0.0004]
[1732503955344,0.48261741,97485.0,97482.0,0.18457129]
[1732503955345,0.30767772,97485.0,97482.0,0.18457129]
[1732503955651,0.051237,97482.0,97476.0,0.18458524]
[1732503955849,0.3608,97477.0,97475.0,0.18458435]
[1732503956044,0.18571836,97476.0,97475.0,0.18459319]
[1732503956246,0.18571836,97476.0,97451.0,0.0318]
[1732503956247,0.18571836,97476.0,97472.0,0.18459319]
[1732503956447,0.18571836,97476.0,97454.0,0.051252]
[1732503956448,0.051242,97473.0,97454.0,0.051252]
[1732503956644,0.3608,97463.0,97455.0,0.31183661]
[1732503956846,0.3608,97463.0,97451.0,0.0318]
[1732503956847,0.05125,97457.0,97456.0,0.31183661]
[1732503957351,0.06403489,97457.0,97456.0,0.31183661]
[1732503957553,0.01278489,97458.0,97452.0,0.051253]
[1732503957746,0.051252,97454.0,97453.0,0.31262327]
[1732503958451,0.01278489,97458.0,97453.0,0.31262327]
[1732503958751,0.01278489,97458.0,97455.0,0.051251]
[1732503958959,0.01278489,97458.0,97451.0,0.0318]
[1732503959165,0.01278489,97458.0,97456.0,0.05125]
[1732503959457,0.01278489,97458.0,97452.0,0.31244959]
[1732503959458,0.051252,97454.0,97452.0,0.051253]
[1732503959755,0.06403726,97454.0,97453.0,0.31292583]
[1732503959954,0.051252,97454.0,97453.0,0.31292583]
[1732503961256,0.06403756,97454.0,97453.0,0.31292583]
[1732503962255,0.051252,97454.0,97453.0,0.31292583]
[1732503963460,0.412052,97454.0,97453.0,0.31292583]
[1732503963658,0.051253,97451.0,97450.0,7.376e-05]
[1732503963954,0.06403258,97451.0,97450.0,7.376e-05]
[1732503964257,0.051253,97451.0,97450.0,7.376e-05]
[1732503964466,0.051253,97451.0,97450.0,0.31675461]
[1732503964756,0.051253,97451.0,97450.0,7.376e-05]
[1732503965063,0.115653,97451.0,97450.0,7.376e-05]
[1732503965460,0.26907377,97451.0,97450.0,7.376e-05]
[1732503965650,0.16550538,97451.0,97450.0,7.376e-05]
[1732503966954,0.16550498,97451.0,97450.0,7.376e-05]
[1732503967356,0.16550498,97451.0,97449.0,0.18462397]
[1732503967357,0.4220932,97451.0,97449.0,0.18462397]
[1732503967666,0.051262,97434.0,97433.0,0.00153937]
[1732503967852,0.547942,97434.0,97433.0,0.00153937]
[1732503968158,0.547942,97434.0,97420.0,0.36913887]
[1732503968159,0.54954199,97434.0,97420.0,0.36913887]
[1732503968460,0.051269,97422.0,97421.0,0.30629641]
[1732503968652,0.187109,97422.0,97421.0,0.30629641]
[1732503968853,0.13584,97422.0,97421.0,0.30629641]
[1732503969669,0.051272,97416.0,97414.0,0.051273]
[1732503969859,0.051272,97416.0,97415.0,0.30584986]
[1732503970261,0.051272,97416.0,97415.0,0.67498873]
[1732503970656,0.051272,97416.0,97415.0,0.67517315]
[1732503970857,0.051272,97416.0,97415.0,0.30584986]
[1732503972759,0.051272,97416.0,97405.0,0.00153995]
[1732503972760,0.046885,97411.0,97407.0,0.36932608]
[1732503972957,0.182725,97411.0,97405.0,0.00153995]
[1732503973157,0.19710193,97411.0,97405.0,0.00153995]
[1732503973462,0.18432499,97411.0,97405.0,0.00153995]
[1732503973765,0.19710193,97411.0,97405.0,0.00153995]
[1732503974556,0.18432499,97411.0,97405.0,0.00153995]
[1732503975463,0.49228499,97411.0,97405.0,0.00153995]
[1732503975655,0.051277,97406.0,97405.0,0.00153995]
[1732503975861,0.4619508,97406.0,97405.0,0.00153995]
[1732503976058,0.46355079,97406.0,97405.0,0.00153995]
[1732503976260,0.77155079,97406.0,97405.0,0.00153995]
[1732503977661,0.95545743,97406.0,97405.0,0.00153995]
[1732503977868,1.09646779,97406.0,97405.0,0.00153995]
[1732503978069,0.91256115,97406.0,97405.0,0.00153995]
[1732503978457,0.91256608,97406.0,97405.0,0.00153995]
[1732503978656,0.60456603,97406.0,97405.0,0.00153995]
[1732503978856,0.59943567,97406.0,97405.0,0.00153995]
[1732503979962,0.59453567,97406.0,97405.0,0.00153995]
[1732503980162,0.54815867,97406.0,97405.0,0.00153995]
[1732503980358,0.00159999,97406.0,97405.0,0.30471684]
[1732503980554,0.00634169,97409.0,97408.0,0.051276]
[1732503980760,0.17844704,97418.0,97409.0,0.01]
[1732503980960,0.12588,97418.0,97416.0,0.051272]
[1732503981163,0.51538996,97425.0,97423.0,0.051268]
[1732503981353,0.046268,97424.0,97423.0,0.051268]
[1732503981555,0.05127,97420.0,97417.0,0.051271]
[1732503981869,0.05127,97420.0,97418.0,0.304052]
[1732503982061,0.051271,97419.0,97417.0,0.051271]
[1732503982457,0.00795483,97418.0,97417.0,0.051271]
[1732503982655,0.00795483,97418.0,97417.0,0.35286442]
[1732503983161,0.00295483,97418.0,97417.0,0.35286442]
[1732503984564,0.00295483,97418.0,97417.0,0.051271]
[1732503985365,0.051273,97415.0,97414.0,0.051272]
[1732503985758,0.051673,97415.0,97414.0,0.051272]
[1732503987667,0.0004,97415.0,97414.0,0.051272]
[1732503991469,0.051672,97415.0,97414.0,0.051272]
[1732503991678,0.051274,97412.0,97411.0,0.30777325]
[1732503991982,0.3612,97412.0,97408.0,0.0004]
[1732503992189,0.051276,97409.0,97408.0,0.0004]
[1732503992480,0.20489913,97409.0,97408.0,0.0004]
[1732503992875,0.051676,97409.0,97408.0,0.0004]
[1732503993081,0.06444411,97409.0,97408.0,0.0004]
[1732503993486,0.0004,97409.0,97408.0,0.0004]
[1732503993774,0.13588,97411.0,97409.0,0.0046]
[1732503993980,0.13128,97411.0,97410.0,0.0331]
[1732503994779,0.01276811,97415.0,97414.0,0.051273]
[1732503994986,0.01276811,97418.0,97416.0,0.051272]
[1732503995176,0.0031737,97417.0,97416.0,0.3608]
[1732503995368,0.0031737,97417.0,97416.0,0.412072]
[1732503995574,0.14864748,97423.0,97416.0,0.66225305]
[1732503995782,0.14864748,97423.0,97419.0,0.30775267]
[1732503995972,0.14864748,97423.0,97422.0,0.0004]
[1732503996372,0.01276748,97423.0,97422.0,0.051669]
[1732503996577,0.01276748,97425.0,97424.0,0.051268]
[1732503996778,0.15322313,97432.0,97424.0,0.71982067]
[1732503997081,9.468e-05,97433.0,97432.0,0.061263]
[1732503997474,9.468e-05,97433.0,97432.0,0.061663]
[1732503997670,9.468e-05,97433.0,97432.0,0.67090491]
[1732503998482,9.468e-05,97433.0,97432.0,0.36940463]
[1732503998683,9.468e-05,97433.0,97432.0,0.67031754]
[1732503998988,9.468e-05,97433.0,97432.0,0.36940463]
[1732503999278,0.36212,97439.0,97438.0,0.05126]
[1732503999479,0.3608,97439.0,97438.0,0.05126]
[1732503999682,0.3608,97439.0,97438.0,0.05166]
[1732504000070,0.38131346,97439.0,97438.0,0.05166]
[1732504000276,0.38143692,97439.0,97438.0,0.05166]
[1732504000581,0.43129259,97439.0,97438.0,0.05166]
[1732504000779,0.41077913,97439.0,97438.0,0.05166]
[1732504002588,0.04997913,97439.0,97438.0,0.05166]
[1732504002986,0.15335337,97439.0,97438.0,0.05166]
[1732504003188,0.00012346,97439.0,97438.0,0.05166]
[1732504003485,0.16599855,97442.0,97439.0,0.01978186]
[1732504003687,0.14621669,97442.0,97440.0,0.051259]
[1732504003880,0.01276864,97448.0,97447.0,0.051256]
[1732504004190,0.1838708,97455.0,97454.0,0.051252]
[1732504004485,0.1838708,97455.0,97454.0,0.4125748]
[1732504004486,0.03983559,97455.0,97454.0,0.4125748]
[1732504005089,9.125e-05,97460.0,97459.0,0.051249]
[1732504005390,0.01277132,97461.0,97460.0,0.00490875]
[1732504005582,0.01277132,97461.0,97459.0,0.050649]
[1732504005583,0.00786257,97461.0,97459.0,0.050649]
[1732504005880,0.051247,97464.0,97460.0,0.0004]
[1732504006082,0.18390911,97462.0,97460.0,0.0004]
[1732504006288,0.18390911,97462.0,97454.0,0.3609228]
[1732504006490,0.00010664,97461.0,97459.0,0.051249]
[1732504007285,0.00816513,97461.0,97459.0,0.051249]
[1732504007588,0.00305849,97460.0,97459.0,0.051249]
[1732504007888,0.00010664,97461.0,97459.0,0.051249]
[1732504008090,0.00010664,97461.0,97459.0,0.35888229]
[1732504008288,0.07070396,97470.0,97461.0,0.00489336]
[1732504008485,0.02050731,97470.0,97464.0,0.412046]
[1732504008683,0.02050731,97470.0,97469.0,0.0004]
[1732504009389,0.02063583,97470.0,97469.0,0.0004]
[1732504010989,0.01563583,97470.0,97469.0,0.0004]
[1732504012489,0.37643583,97470.0,97469.0,0.0004]
[1732504013989,0.51219583,97470.0,97469.0,0.0004]
[1732504014188,0.50719583,97470.0,97469.0,0.0004]
[1732504015291,0.051244,97469.0,97454.0,0.3609228]
[1732504015489,0.051251,97455.0,97454.0,0.0001228]
[1732504015803,0.187411,97455.0,97454.0,0.0001228]
[1732504019392,0.23726137,97455.0,97454.0,0.0001228]
[1732504019695,0.23726137,97455.0,97440.0,0.00153944]
[1732504019696,0.051259,97441.0,97440.0,0.00153944]
[1732504019994,0.59806937,97441.0,97440.0,0.00153944]
[1732504020593,0.051259,97440.0,97438.0,0.05126]
[1732504020798,0.06262028,97439.0,97438.0,0.05126]
[1732504020986,0.05025037,97439.0,97438.0,0.05126]
[1732504021186,0.06302028,97439.0,97438.0,0.05126]
[1732504021399,0.051261,97437.0,97433.0,0.051263]
[1732504021695,0.051263,97435.0,97434.0,0.051262]
[1732504021893,0.10111337,97435.0,97434.0,0.051262]
[1732504022689,0.04985037,97435.0,97434.0,0.051262]
[1732504023193,0.0313,97436.0,97434.0,0.051262]
[1732504023194,0.0313,97436.0,97434.0,0.36260153]
[1732504023406,0.0313,97436.0,97435.0,0.31133953]
[1732504023999,0.0263,97436.0,97435.0,0.31133953]
[1732504024197,0.0263,97436.0,97435.0,0.31173953]
[1732504024797,0.0263,97436.0,97435.0,0.0004]
[1732504024997,0.0263,97436.0,97435.0,0.31007403]
[1732504025596,0.20018812,97436.0,97435.0,0.0004]
[1732504025792,0.077561,97436.0,97435.0,0.0004]
[1732504026303,0.0263,97436.0,97435.0,0.31051035]
[1732504026498,0.00132,97441.0,97435.0,0.67131035]
[1732504026699,0.14852972,97443.0,97442.0,0.051258]
[1732504026892,0.01277015,97443.0,97442.0,0.36136835]
[1732504027091,0.01277015,97443.0,97442.0,0.66946917]
[1732504027293,0.13576,97444.0,97442.0,0.36176835]
[1732504027610,0.13576,97444.0,97443.0,0.61820852]
[1732504027903,0.13576,97444.0,97443.0,0.31051035]
[1732504028091,0.13568,97444.0,97443.0,0.36176735]
[1732504028488,0.13568,97444.0,97443.0,0.31051035]
[1732504028695,0.13568,97444.0,97443.0,0.30809605]
[1732504029091,0.12258684,97444.0,97443.0,0.30809605]
[1732504029295,0.13068,97444.0,97443.0,0.61482799]
[1732504029497,0.13068,97444.0,97443.0,0.30713194]
[1732504029690,0.12258684,97446.0,97444.0,0.005]
[1732504029901,0.14845015,97446.0,97445.0,0.35798818]
[1732504030199,0.13568,97446.0,97445.0,0.35838818]
[1732504030503,0.13068,97446.0,97445.0,0.35838818]
[1732504030705,0.12067,97446.0,97445.0,0.35838818]
[1732504031091,0.051256,97447.0,97445.0,0.35838818]
[1732504031297,0.186936,97447.0,97446.0,0.30673118]
[1732504031606,0.186936,97447.0,97446.0,0.30713118]
[1732504033008,0.186936,97447.0,97446.0,0.6148212]
[1732504033302,0.186936,97447.0,97446.0,0.0004]
[1732504033494,0.23678994,97447.0,97446.0,0.0004]
[1732504033700,0.23678994,97447.0,97437.0,0.24616836]
[1732504033905,0.3608,97438.0,97435.0,0.24616836]
[1732504034100,0.40429708,97437.0,97436.0,0.24616836]
[1732504034301,0.40429708,97437.0,97426.0,8.53e-05]
[1732504034302,0.40429708,97437.0,97435.0,0.24616836]
[1732504034703,0.051262,97435.0,97434.0,0.24616836]
[1732504035009,0.051662,97435.0,97434.0,0.24616836]
[1732504035309,0.051265,97430.0,97429.0,0.30769002]
[1732504035899,0.051665,97430.0,97429.0,0.30769002]
[1732504036100,0.17427231,97430.0,97429.0,0.30769002]
[1732504036406,0.051665,97430.0,97429.0,0.30769002]
[1732504036607,0.17427231,97430.0,97428.0,0.30769002]
[1732504037110,0.0333,97429.0,97428.0,0.30769002]
[1732504037317,0.0333,97429.0,97428.0,0.61532862]
[1732504037508,0.0337,97429.0,97428.0,0.30769002]
[1732504037811,0.0337,97429.0,97428.0,0.61532862]
[1732504038009,0.0337,97429.0,97426.0,0.0513523]
[1732504038308,0.01317286,97427.0,97426.0,0.0513523]
[1732504038510,0.0004,97427.0,97426.0,0.0513523]
[1732504038812,0.01317286,97427.0,97426.0,0.0513523]
[1732504039610,0.0004,97427.0,97426.0,0.0513523]
[1732504039813,0.14885286,97427.0,97426.0,0.0513523]
[1732504040309,0.14885286,97427.0,97426.0,8.53e-05]
[1732504040515,0.13608,97427.0,97426.0,8.53e-05]
[1732504040709,0.54674094,97427.0,97426.0,8.53e-05]
[1732504041315,0.6775594,97427.0,97426.0,8.53e-05]
[1732504041912,0.9854794,97427.0,97426.0,8.53e-05]
[1732504042116,0.9854794,97427.0,97414.0,0.00193962]
[1732504042117,0.051272,97415.0,97414.0,0.00193962]
[1732504042410,0.24998759,97415.0,97414.0,0.00193962]
[1732504042615,0.23721294,97415.0,97414.0,0.00193962]
[1732504042809,0.27021294,97415.0,97414.0,0.00193962]
[1732504044507,0.220352,97415.0,97414.0,0.00193962]
[1732504044721,0.27022047,97415.0,97414.0,0.00193962]
[1732504045110,0.220352,97415.0,97414.0,0.00193962]
[1732504045302,0.0004,97415.0,97414.0,0.00193962]
[1732504045508,0.0004,97415.0,97414.0,0.31056583]
[1732504045705,0.0004,97415.0,97414.0,0.37126583]
[1732504046917,0.13572,97416.0,97415.0,0.0016]
[1732504047102,0.13372,97416.0,97415.0,0.35989821]
[1732504047310,0.25835682,97421.0,97420.0,0.05127]
[1732504047510,0.20732124,97492.0,97420.0,0.05127]
[1732504047511,0.13541209,97424.0,97423.0,0.051268]
[1732504047712,0.12812,97424.0,97423.0,0.35824054]
[1732504048018,0.12812,97424.0,97423.0,0.72748132]
[1732504048019,0.12312,97424.0,97423.0,0.72748132]
[1732504048514,0.12312,97424.0,97423.0,0.72788132]
[1732504048820,0.12312,97424.0,97423.0,0.72738132]
[1732504049209,0.051266,97427.0,97426.0,0.051266]
[1732504049521,0.19976272,97427.0,97426.0,0.3580305]
[1732504049812,0.06404272,97427.0,97426.0,0.3580305]
[1732504050705,0.06404272,97427.0,97426.0,0.3067645]
[1732504050706,0.05929815,97427.0,97426.0,0.3067645]
[1732504053718,0.05929815,97427.0,97426.0,0.61451731]
[1732504054615,0.05929815,97427.0,97426.0,0.6121425]
[1732504055610,0.05929815,97427.0,97426.0,0.30438969]
[1732504056011,0.00803215,97427.0,97426.0,0.30438969]
[1732504058411,0.00807022,97427.0,97426.0,0.35565669]
[1732504058811,0.25823682,97429.0,97428.0,0.051266]
[1732504059023,0.26630217,97429.0,97428.0,0.051266]
[1732504059222,0.00806535,97429.0,97428.0,0.35941305]
[1732504059422,0.14366535,97429.0,97428.0,0.35941305]
[1732504059816,0.14366535,97429.0,97428.0,0.35633041]
[1732504060211,0.14366535,97429.0,97428.0,0.051666]
[1732504060523,0.15144193,97429.0,97428.0,0.051666]
[1732504061021,0.13866535,97429.0,97428.0,0.051666]
[1732504062023,0.1356,97429.0,97428.0,0.051666]
[1732504062236,0.3608,97430.0,97428.0,0.0004]
[1732504062418,0.3608,97430.0,97429.0,0.051265]
[1732504062721,0.4964,97430.0,97429.0,0.051665]
[1732504064218,0.15329448,97435.0,97430.0,0.005]
[1732504064422,0.01277611,97437.0,97435.0,0.005]
[1732504064621,0.15329448,97439.0,97438.0,0.05126]
[1732504064818,0.28889448,97440.0,97439.0,0.06127]
[1732504065022,0.34015348,97440.0,97439.0,0.25618749]
[1732504065217,0.34015348,97440.0,97439.0,0.0004]
[1732504065414,0.32514349,97440.0,97439.0,0.0004]
[1732504065614,0.20455348,97440.0,97439.0,0.0004]
[1732504065819,0.34015348,97440.0,97439.0,0.0004]
[1732504066329,0.34010242,97440.0,97439.0,0.0004]
[1732504067014,0.186859,97440.0,97439.0,0.0004]
[1732504068125,0.186859,97440.0,97439.0,0.30813923]
[1732504069425,0.186859,97440.0,97439.0,0.35939923]
[1732504069631,0.186859,97440.0,97439.0,0.66218938]
[1732504070020,0.12256946,97441.0,97439.0,0.66218938]
[1732504070230,0.13556,97441.0,97440.0,0.35896774]
[1732504070517,0.13056,97441.0,97440.0,0.35936774]
[1732504071233,0.13556,97441.0,97440.0,0.35936774]
[1732504071529,0.14832863,97441.0,97440.0,0.30810874]
[1732504071718,0.14832863,97441.0,97440.0,0.0004]
[1732504071719,0.27089809,97441.0,97440.0,0.0004]
[1732504072629,0.26617685,97441.0,97440.0,0.0004]
[1732504072929,0.31743585,97441.0,97440.0,0.0004]
[1732504074016,0.31743585,97441.0,97440.0,0.051659]
[1732504074421,0.31743585,97441.0,97440.0,0.0004]
[1732504075132,0.24472017,97441.0,97440.0,0.0004]
[1732504076730,0.24478846,97441.0,97440.0,0.0004]
[1732504079325,0.10922846,97441.0,97440.0,0.0004]
[1732504079522,0.24478839,97441.0,97440.0,0.0004]
[1732504080736,0.25764854,97441.0,97440.0,0.0004]
[1732504081233,0.24488024,97441.0,97440.0,0.0004]
[1732504081434,0.25764854,97441.0,97440.0,0.0004]
[1732504082737,0.42883651,97441.0,97440.0,0.0004]
[1732504083128,0.3789828,97441.0,97440.0,0.0004]
[1732504083326,0.19502653,97441.0,97440.0,0.0004]
[1732504083928,0.19494212,97441.0,97440.0,0.051659]
[1732504084827,0.18994212,97441.0,97440.0,0.051659]
[1732504085031,0.05438212,97441.0,97440.0,0.051659]
[1732504085225,0.18994212,97441.0,97440.0,0.051659]
[1732504086132,0.18994212,97441.0,97440.0,0.0004]
[1732504089537,0.31252029,97441.0,97440.0,0.051659]
[1732504089743,0.31252029,97441.0,97440.0,0.051159]
[1732504090329,0.23979597,97441.0,97440.0,0.2357851]
[1732504091429,0.23960862,97441.0,97440.0,0.2357851]
[1732504091738,0.23960862,97441.0,97440.0,0.1846261]
[1732504092032,0.23960862,97441.0,97438.0,0.1846261]
[1732504092236,0.051261,97437.0,97435.0,0.1846261]
[1732504092437,0.11978962,97436.0,97435.0,0.1846261]
[1732504092839,0.11185385,97436.0,97435.0,0.1846261]
[1732504093235,0.051263,97433.0,97431.0,0.24616813]
[1732504093437,0.13544,97432.0,97431.0,0.24616813]
[1732504093635,0.13584001,97432.0,97431.0,0.24616813]
[1732504093933,0.13084001,97432.0,97430.0,0.051264]
[1732504094238,0.00040001,97431.0,97430.0,0.051264]
[1732504095035,0.051265,97430.0,97429.0,0.3608]
[1732504095436,0.05166501,97430.0,97429.0,0.3608]
[1732504098244,0.05166501,97430.0,97429.0,0.6712012]
[1732504101152,0.14359553,97430.0,97429.0,0.6712012]
[1732504101351,0.05166501,97430.0,97429.0,0.6712012]
[1732504101558,0.14359528,97430.0,97429.0,0.6712012]
[1732504101848,0.05166501,97430.0,97429.0,0.6712012]
[1732504103345,0.05166501,97430.0,97429.0,0.67130645]
[1732504104150,0.00040001,97430.0,97429.0,0.67130645]
[1732504104450,0.00040001,97430.0,97429.0,1.34855169]
[1732504104650,0.09194183,97437.0,97435.0,0.051262]
[1732504104851,0.00040001,97439.0,97437.0,0.056261]
[1732504104852,0.09194183,97438.0,97437.0,0.056261]
[1732504105046,0.08694183,97438.0,97437.0,0.72256745]
[1732504105253,0.00040001,97439.0,97437.0,0.412061]
[1732504105645,0.12299256,97439.0,97438.0,0.0004]
[1732504105845,0.1308829,97439.0,97438.0,0.0004]
[1732504106445,0.00829035,97439.0,97438.0,0.0004]
[1732504106648,0.00040001,97439.0,97438.0,0.0004]
[1732504106954,0.00829035,97439.0,97438.0,0.0004]
[1732504107145,0.00829754,97439.0,97438.0,0.0004]
[1732504107757,0.00040001,97439.0,97438.0,0.0004]
[1732504108959,0.00834716,97439.0,97438.0,0.0004]
[1732504110056,0.19661033,97449.0,97442.0,0.051258]
[1732504110057,0.12258624,97443.0,97442.0,0.051258]
[1732504110259,0.12258624,97444.0,97442.0,0.35941884]
[1732504110455,0.12258624,97445.0,97444.0,0.05665699]
[1732504110656,0.11757624,97445.0,97444.0,0.051257]
[1732504110853,0.11757624,97445.0,97444.0,0.05165702]
[1732504111353,0.15321283,97451.0,97444.0,0.61565726]
[1732504111555,0.15321283,97452.0,97450.0,0.60692946]
[1732504111763,0.15321283,97452.0,97451.0,0.051253]
[1732504111960,0.1659658,97453.0,97451.0,0.24652948]
[1732504112170,0.15321283,97453.0,97452.0,0.051253]
[1732504112457,0.15321283,97453.0,97452.0,0.05165302]
[1732504112853,0.16096957,97453.0,97452.0,0.05165302]
[1732504113256,0.01275674,97453.0,97452.0,0.66768921]
[1732504113463,0.01275674,97454.0,97453.0,0.051252]
[1732504113758,0.01275674,97462.0,97454.0,0.005]
[1732504113965,0.01275674,97464.0,97463.0,0.051247]
[1732504114169,0.01275674,97468.0,97463.0,0.30835397]
[1732504114360,0.00012852,97470.0,97469.0,0.051244]
[1732504114659,0.01275674,97474.0,97473.0,0.051242]
[1732504114857,0.412041,97475.0,97474.0,0.01713474]
[1732504115061,0.051241,97474.0,97473.0,0.00040002]
[1732504115357,0.051243,97470.0,97469.0,0.24609286]
[1732504115557,0.05136539,97470.0,97469.0,0.24609286]
[1732504116252,0.18680539,97470.0,97469.0,0.24609286]
[1732504116653,0.05136539,97470.0,97469.0,0.24609286]
[1732504116857,0.18680539,97470.0,97469.0,0.24609286]
[1732504117557,0.05136539,97470.0,97469.0,0.24609286]
[1732504117761,0.18182539,97470.0,97469.0,0.24609286]
[1732504117959,0.051246,97466.0,97465.0,0.051246]
[1732504118265,0.051646,97466.0,97465.0,0.051246]
[1732504118962,0.0004,97466.0,97465.0,0.051246]
[1732504119158,0.00012239,97470.0,97469.0,0.051244]
[1732504119357,0.13528,97486.0,97470.0,0.0044876]
[1732504119652,0.0308,97481.0,97477.0,0.3608]
[1732504119858,0.01275559,97480.0,97479.0,0.051239]
[1732504120057,0.01275559,97480.0,97479.0,0.36254039]
[1732504120259,0.01285812,97480.0,97479.0,0.36254039]
[1732504120461,0.00010253,97480.0,97479.0,0.36254039]
[1732504120659,0.00010253,97480.0,97479.0,0.67009874]
[1732504121270,0.00010253,97480.0,97479.0,0.31130139]
[1732504121571,0.00010253,97480.0,97478.0,0.30756578]
[1732504121870,0.0004,97479.0,97478.0,0.35880478]
[1732504122467,0.0004,97479.0,97478.0,0.051239]
[1732504123258,0.01316904,97479.0,97478.0,0.051239]
[1732504123971,0.0004,97479.0,97478.0,0.051239]
[1732504128274,0.05023281,97479.0,97478.0,0.051239]
[1732504130073,0.051242,97472.0,97468.0,0.23579217]
[1732504130271,0.18378436,97470.0,97468.0,0.051244]
[1732504130480,0.23401717,97469.0,97468.0,0.051244]
[1732504130868,0.05023281,97469.0,97468.0,0.051244]
[1732504131067,0.05023281,97469.0,97464.0,0.00011647]
[1732504131267,0.051246,97465.0,97464.0,0.00011647]
[1732504131575,0.23671881,97465.0,97464.0,0.00011647]
[1732504132069,0.42046358,97465.0,97464.0,0.00011647]
[1732504132280,0.23671881,97465.0,97464.0,0.05136347]
[1732504132479,0.23671881,97465.0,97464.0,0.00011647]
[1732504132869,0.23212993,97465.0,97464.0,0.00011647]
[1732504134676,0.051253,97452.0,97451.0,0.00040002]
[1732504134865,0.59713693,97452.0,97451.0,0.00040002]
[1732504135065,0.59753693,97452.0,97451.0,0.00040002]
[1732504135271,0.547693,97452.0,97451.0,0.00040002]
[1732504136975,0.547693,97452.0,97451.0,0.2465574]
[1732504137174,0.186893,97452.0,97451.0,0.00040002]
[1732504137486,0.181893,97452.0,97451.0,0.00040002]
[1732504138179,0.181893,97452.0,97451.0,0.62169813]
[1732504138377,0.181893,97452.0,97451.0,0.00040002]
[1732504138775,0.22398842,97452.0,97451.0,0.00040002]
[1732504139170,0.27384125,97452.0,97451.0,0.00040002]
[1732504139481,0.58168125,97452.0,97451.0,0.00040002]
[1732504139879,0.58168125,97452.0,97451.0,0.18502307]
[1732504140273,0.58168125,97452.0,97451.0,0.00040002]
[1732504141477,0.13360125,97452.0,97451.0,0.00040002]
[1732504141679,0.17777542,97452.0,97451.0,0.00040002]
[1732504141882,0.17777542,97452.0,97451.0,0.3079658]
[1732504142181,0.04249542,97452.0,97451.0,0.31793645]
[1732504142486,0.03249542,97452.0,97451.0,0.31793645]
[1732504142674,0.13528,97456.0,97451.0,0.31793645]
[1732504142879,0.051251,97455.0,97454.0,0.051251]
[1732504143587,0.13528,97456.0,97455.0,0.005]
[1732504143777,0.16354462,97457.0,97455.0,0.36692172]
[1732504143978,0.02826462,97457.0,97456.0,0.31567072]
[1732504144488,0.051247,97463.0,97456.0,0.31567072]
[1732504144685,0.13528,97461.0,97460.0,0.35889861]
[1732504144877,0.051247,97463.0,97461.0,0.051248]
[1732504145180,0.051247,97463.0,97462.0,0.00120001]
[1732504145380,0.186527,97463.0,97462.0,0.00120001]
[1732504145686,0.182527,97463.0,97462.0,0.00120001]
[1732504145882,0.182527,97463.0,97462.0,0.3160572]
[1732504146085,0.36592768,97469.0,97462.0,0.3160572]
[1732504146381,0.3608,97469.0,97467.0,0.051245]
[1732504146580,0.3608,97469.0,97466.0,0.30763531]
[1732504146581,0.05636968,97474.0,97469.0,0.00501]
[1732504146789,0.186522,97473.0,97472.0,0.051242]
[1732504147092,0.181512,97473.0,97472.0,0.051242]
[1732504147575,0.20202556,97473.0,97472.0,0.051242]
[1732504147771,0.06674556,97473.0,97472.0,0.051242]
[1732504147976,0.20202556,97473.0,97472.0,0.051242]
[1732504148181,0.051244,97469.0,97467.0,0.051245]
[1732504148583,0.0004,97468.0,97467.0,0.051245]
[1732504150376,0.18402334,97468.0,97467.0,0.051245]
[1732504150585,0.23386366,97468.0,97467.0,0.051245]
[1732504151584,0.05024032,97468.0,97467.0,0.051245]
[1732504152380,0.0004,97468.0,97467.0,0.051245]
[1732504152687,0.00010253,97480.0,97479.0,0.051239]
[1732504152988,0.0498372,97485.0,97484.0,0.051236]
[1732504153185,0.05773993,97485.0,97484.0,0.051236]
[1732504153385,0.04785246,97485.0,97484.0,0.05283602]
[1732504153682,0.3608,97487.0,97486.0,0.051235]
[1732504153878,0.3608726,97487.0,97486.0,0.051235]
[1732504154079,0.3608726,97487.0,97486.0,0.05283502]
[1732504158494,7.26e-05,97487.0,97486.0,0.75335354]
[1732504158690,0.02050289,97492.0,97490.0,0.051233]
[1732504158987,0.01275968,97499.0,97492.0,0.00499]
[1732504159289,0.99740949,97506.0,97500.0,0.051228]
[1732504159290,0.01275968,97501.0,97500.0,0.051228]
[1732504159487,0.01275968,97502.0,97501.0,0.01]
[1732504159683,0.01275968,97505.0,97502.0,0.01]
[1732504159995,0.01275968,97505.0,97496.0,0.3608]
[1732504159996,0.00275968,97505.0,97504.0,0.05282602]
[1732504160187,0.00284019,97505.0,97504.0,0.05282602]
[1732504160383,8.051e-05,97505.0,97504.0,0.35906143]
[1732504161786,0.41202,97516.0,97514.0,0.05122]
[1732504161787,0.15310448,97516.0,97514.0,0.05122]
[1732504161987,0.14818499,97516.0,97514.0,0.29720847]
[1732504162181,0.07171889,97522.0,97515.0,0.24758849]
[1732504162378,0.07171889,97522.0,97521.0,0.051217]
[1732504162693,0.21196342,97522.0,97521.0,0.05281702]
[1732504162890,0.21206102,97522.0,97521.0,0.05281702]
[1732504163682,0.07694102,97522.0,97521.0,0.05281702]
[1732504163989,0.21206102,97522.0,97521.0,0.23730016]
[1732504164190,0.20706102,97522.0,97521.0,0.23730016]
[1732504164892,0.25930966,97522.0,97521.0,0.23730016]
[1732504165386,0.25930966,97522.0,97505.0,0.0321]
[1732504165387,0.21321817,97522.0,97505.0,0.0321]
[1732504165594,0.21439786,97516.0,97505.0,0.0321]
[1732504165785,0.0004,97507.0,97506.0,0.082325]
[1732504165985,0.0084399,97507.0,97506.0,0.082325]
[1732504166182,0.0084399,97507.0,97506.0,0.390005]
[1732504166382,0.21439786,97519.0,97506.0,0.390005]
[1732504166587,0.21439786,97521.0,97520.0,0.051217]
[1732504166793,0.21452226,97521.0,97520.0,0.051217]
[1732504166992,0.00512439,97521.0,97520.0,0.051217]
[1732504167489,9.76e-05,97522.0,97520.0,0.051217]
[1732504167897,9.76e-05,97522.0,97521.0,0.0004]
[1732504168993,0.05493282,97529.0,97522.0,0.0049024]
[1732504169182,0.13508,97531.0,97530.0,0.051212]
[1732504169388,0.17998597,97531.0,97530.0,0.051212]
[1732504169593,0.17998597,97531.0,97530.0,0.051612]